bitfinex-derivatives/quotes_ETHF0:USTF0_20250727
["timestamp","ask_amount","ask_price","bid_price","bid_amount"]
[1753630897324,4.9385,3814.9,3814.8,1.7402]
[1753630898130,1.7307,3814.9,3814.8,1.7402]
[1753630898424,2.25479,3814.9,3814.8,1.7402]
[1753630898730,1.22286,3814.5,3814.4,0.52415]
[1753630898929,2.25486,3814.5,3814.4,0.71055]
[1753630899623,1.7307,3814.5,3814.4,0.99815]
[1753630899824,0.6987,3814.8,3814.7,0.696]
[1753630900022,0.9801,3814.8,3814.7,2.26431]
[1753630900423,1.5042,3814.8,3814.7,2.26431]
[1753630900728,2.2548,3814.8,3814.7,2.26431]
[1753630901126,2.2548,3814.8,3814.7,0.9836]
[1753630901330,1.7307,3814.4,3814.3,1.96777]
[1753630901525,1.7307,3814.4,3814.3,2.26437]
[1753630902831,0.2934,3814.7,3814.6,2.26433]
[1753630903035,4.1879,3814.9,3814.8,1.2201]
[1753630903227,5.46259,3814.9,3814.8,2.2643]
[1753630904726,1.7307,3814.9,3814.8,2.2643]
[1753630906127,2.25479,3814.9,3814.8,2.2643]
[1753630907728,2.25479,3814.9,3814.8,1.4436]
[1753630908033,2.25479,3814.9,3814.8,0.9836]
[1753630908236,2.25479,3814.9,3814.8,0.1864]
[1753630908735,2.2548,3814.8,3814.7,0.91152]
[1753630908923,2.2548,3814.8,3814.7,1.50772]
[1753630909132,2.2548,3814.8,3814.7,2.26432]
[1753630909434,1.7307,3814.8,3814.7,2.26432]
[1753630910538,2.2548,3814.8,3814.7,2.26432]
[1753630910928,1.7307,3814.8,3814.7,2.26432]
[1753630911131,2.2548,3814.8,3814.7,2.26432]
[1753630912238,1.7307,3814.8,3814.7,2.26432]
[1753630912734,2.2548,3814.8,3814.7,2.26432]
[1753630912932,1.7307,3814.8,3814.7,2.26432]
[1753630913330,0.4952,3815.0,3814.9,1.22008]
[1753630913535,1.22278,3815.0,3814.9,1.22008]
[1753630913737,1.50418,3815.0,3814.9,1.22008]
[1753630913938,0.9801,3815.0,3814.9,2.26428]
[1753630914139,1.4247,3815.0,3814.9,2.26428]
[1753630915137,1.94877,3815.0,3814.9,2.26428]
[1753630915339,2.25477,3815.0,3814.9,2.26428]
[1753630915937,1.7307,3815.0,3814.9,2.26428]
[1753630916139,2.25477,3815.0,3814.9,2.26428]
[1753630916328,1.7307,3815.0,3814.9,2.26428]
[1753630916534,3.9065,3815.1,3815.0,0.91148]
[1753630916733,4.9385,3815.1,3815.0,2.26428]
[1753630917634,5.46256,3815.1,3815.0,2.26428]
[1753630918538,4.9385,3815.1,3815.0,2.26428]
[1753630918839,1.7307,3815.1,3815.0,2.26428]
[1753630919043,2.25476,3815.1,3815.0,2.26428]
[1753630919236,1.7307,3815.1,3815.0,2.26428]
[1753630919431,1.4247,3815.1,3815.0,2.26428]
[1753630920336,21.283,3815.6,3815.5,0.6882]
[1753630920337,1.6508,3815.6,3815.5,0.6882]
[1753630920542,1.9521,3815.6,3815.5,1.7221]
[1753630920837,1.7105,3815.6,3815.5,2.24611]
[1753630921434,0.3041,3814.9,3814.8,0.453]
[1753630921635,1.7105,3814.9,3814.8,1.76271]
[1753630921834,0.1969,3814.5,3814.4,3.2078]
[1753630922136,1.7105,3814.0,3813.9,5.16713]
[1753630922645,0.6906,3814.3,3814.2,2.24629]
[1753630922941,5.44244,3814.6,3814.5,2.24625]
[1753630923338,5.44244,3814.6,3814.5,0.91955]
[1753630923539,0.6906,3814.3,3813.8,0.64702966]
[1753630923742,2.2347,3814.2,3814.1,0.52419]
[1753630924043,2.2347,3814.2,3814.1,0.72309]
[1753630924245,1.7105,3814.2,3814.1,0.72309]
[1753630924543,1.7105,3814.2,3814.1,2.24629]
[1753630925042,0.9299,3814.5,3814.4,2.24626]
[1753630925344,0.6906,3814.5,3814.4,2.24626]
[1753630925638,1.7105,3814.2,3814.1,0.52419]
[1753630925843,4.9183,3814.6,3814.5,2.24625]
[1753630926040,3.5119,3814.6,3814.5,2.24625]
[1753630926243,3.2078,3815.1,3814.9,1.7221]
[1753630926540,1.7105,3815.4,3815.3,2.24614]
[1753630926845,2.96812307,3815.4,3815.3,2.24614]
[1753630927247,2.44409307,3815.4,3815.3,2.24614]
[1753630927647,2.96812307,3815.4,3815.3,2.24614]
[1753630927945,2.96812307,3815.4,3815.3,0.72294]
[1753630928147,2.96812307,3815.4,3815.3,1.95914]
[1753630928345,2.23453,3815.4,3815.3,1.95914]
[1753630929344,1.7105,3815.4,3815.3,1.95914]
[1753630929851,1.7105,3815.4,3815.3,2.24614]
[1753630930352,2.23453,3815.4,3815.3,2.24614]
[1753630930646,2.23453,3815.4,3815.3,0.1989]
[1753630930852,2.23455,3815.2,3815.1,0.72296]
[1753630931449,1.7105,3815.2,3815.1,0.72296]
[1753630931751,1.7105,3815.2,3815.1,1.95916]
[1753630931943,0.9919,3815.2,3815.1,2.24616]
[1753630932144,0.8023,3815.2,3815.1,2.24616]
[1753630932738,5.15992,3815.5,3815.4,0.52403]
[1753630932949,5.44231,3815.5,3815.4,2.24613]
[1753630933341,2.23461,3814.8,3814.7,0.9458]
[1753630933544,2.23461,3814.8,3814.7,1.95922]
[1753630933739,1.7105,3814.8,3814.7,2.24622]
[1753630934654,2.23461,3814.8,3814.7,1.7221]
[1753630934845,2.23461,3814.8,3814.7,2.24622]
[1753630935751,2.23461,3814.8,3814.7,1.7221]
[1753630936751,2.23461,3814.8,3814.7,2.24623]
[1753630937446,4.9183,3815.2,3815.1,2.24617]
[1753630937641,1.95211,3815.6,3815.5,1.01572]
[1753630937842,1.7105,3815.6,3815.5,2.24612]
[1753630938353,3.2078,3815.8,3815.7,2.24609]
[1753630938545,0.4362,3816.2,3816.0,0.4917]
[1753630938850,3.2078,3816.3,3816.2,2.24602]
[1753630939047,1.93306,3816.6,3816.5,1.21208]
[1753630939355,1.93306,3816.6,3816.5,2.24598]
[1753630939356,1.7105,3816.6,3816.5,2.24598]
[1753630942158,2.23437,3816.6,3816.5,1.01668]
[1753630942365,2.23437,3816.6,3816.5,0.72278]
[1753630942565,2.23437,3816.6,3816.5,0.52388]
[1753630943060,1.7105,3816.6,3816.5,0.72278]
[1753630943255,1.7105,3816.6,3816.5,1.01668]
[1753630943764,3.2078,3816.7,3816.6,2.24597]
[1753630945956,4.9183,3816.7,3816.6,1.50597]
[1753630946160,5.44215,3816.7,3816.6,1.50597]
[1753630946762,5.44215,3816.7,3816.6,0.52387]
[1753630946960,5.44215,3816.7,3816.6,0.72277]
[1753630947160,5.44215,3816.7,3816.6,1.01667]
[1753630948664,5.44215,3816.7,3816.6,0.72277]
[1753630948967,5.44215,3816.7,3816.6,1.22587]
[1753630949155,5.44215,3816.7,3816.6,0.91927]
[1753630949361,2.2607,3816.5,3816.4,0.52388]
[1753630949757,1.7368,3816.5,3816.0,0.4321]
[1753630949957,2.26074,3816.1,3816.0,0.91315]
[1753630950669,2.26074,3816.1,3816.0,1.21485]
[1753630952073,2.26074,3816.1,3816.0,2.23735]
[1753630952367,1.7368,3816.1,3816.0,2.23735]
[1753630952757,2.26075,3816.1,3816.0,2.23735]
[1753630953162,1.7368,3816.1,3816.0,2.23735]
[1753630953660,2.26075,3816.1,3816.0,2.23735]
[1753630954072,1.7368,3816.1,3816.0,2.23735]
[1753630954272,2.26075,3816.1,3816.0,2.23735]
[1753630954566,1.7368,3815.7,3815.6,0.524]
[1753630954865,0.2959,3816.0,3815.9,0.3892]
[1753630955058,4.6382,3816.2,3816.1,1.19694]
[1753630955262,4.9446,3816.2,3816.1,2.23734]
[1753630956066,5.46853,3816.2,3816.1,2.23734]
[1753630957173,4.9446,3816.2,3816.1,2.23734]
[1753630957375,5.46853,3816.2,3816.1,2.23734]
[1753630957974,4.9446,3816.2,3816.1,2.23734]
[1753630958570,4.98406603,3816.2,3816.1,2.23734]
[1753630960171,3.72976603,3816.2,3816.1,2.23734]
[1753630960679,0.03946603,3816.2,3816.1,2.23734]
[1753630961778,0.71096603,3816.2,3816.1,2.23734]
[1753630962076,1.00686603,3816.2,3816.1,2.23734]
[1753630963069,1.77626603,3816.2,3816.1,2.23734]
[1753630964769,0.03946603,3816.2,3816.1,2.23734]
[1753630965979,1.77626603,3816.2,3816.1,2.23734]
[1753630966978,0.71096603,3816.2,3816.1,2.23734]
[1753630968173,0.03946603,3816.2,3816.1,2.23734]
[1753630979080,4.42524,3817.6,3817.5,0.2055]
[1753630979388,5.16940604,3817.6,3817.5,0.52375]
[1753630979583,2.24968,3817.4,3817.3,0.72926]
[1753630979790,2.47006604,3817.4,3817.3,1.02486]
[1753630980083,1.7259,3817.4,3817.3,0.72926]
[1753630980584,1.7259,3817.4,3817.3,1.99326]
[1753630981484,1.7259,3817.4,3817.3,2.29926]
[1753630981686,1.0322,3817.3,3816.6,0.2956]
[1753630981882,1.7259,3816.7,3816.6,0.52388]
[1753630982280,1.7259,3816.7,3816.6,1.99338]
[1753630982489,1.7259,3816.7,3816.6,2.29938]
[1753630982879,1.7259,3816.7,3816.6,1.02498]
[1753630983084,1.7259,3816.7,3816.6,0.72938]
[1753630983285,1.7259,3816.7,3816.6,1.99338]
[1753630983480,1.7259,3816.7,3816.6,2.29938]
[1753630984388,1.4177,3816.7,3816.6,2.29938]
[1753630984987,0.7963,3817.0,3816.9,1.03243]
[1753630985179,1.7259,3817.2,3817.1,1.1739]
[1753630985387,1.6759,3817.2,3817.1,2.29931]
[1753630989891,1.7259,3817.5,3817.4,2.29927]
[1753630990995,1.7259,3817.5,3817.4,1.53327]
[1753630991189,1.7259,3817.5,3817.4,1.23017]
[1753630991792,1.7259,3817.5,3817.4,2.29927]
[1753630992092,0.9743,3817.5,3817.4,2.29927]
[1753630992493,1.7259,3817.5,3817.4,2.29927]
[1753630994991,1.9259,3817.9,3817.8,1.48481]
[1753630995793,2.4496,3817.9,3817.8,0.52371]
[1753630996389,1.21749,3817.4,3817.3,0.52376]
[1753630996596,2.24969,3817.4,3817.3,0.52376]
[1753630997294,1.21749,3817.3,3817.2,0.52378]
[1753630997488,0.3981,3816.9,3816.8,3.2078]
[1753630997693,1.21755,3816.8,3816.7,21.69886]
[1753630997895,2.24975,3816.8,3816.7,0.52386]
[1753630998997,1.7259,3816.4,3816.3,2.29942]
[1753630999899,2.2498,3816.4,3816.3,0.52392]
[1753631000594,3.2078,3816.6,3815.9,0.72945]
[1753631000595,2.24987,3816.0,3815.9,0.72945]
[1753631000793,2.24987,3816.0,3815.9,0.52395]
[1753631000990,2.24989,3815.9,3815.8,0.52398]
[1753631001190,2.24989,3815.9,3815.7,0.72949]
[1753631001191,0.9221,3815.8,3815.7,0.72949]
[1753631001399,2.2499,3815.8,3815.7,0.72949]
[1753631001892,0.3082,3816.4,3816.3,0.4108]
[1753631002198,0.6937,3816.4,3816.3,3.04473501]
[1753631002399,0.5012,3816.4,3816.3,3.04473501]
[1753631002597,0.2956,3816.4,3816.3,3.04473501]
[1753631002893,3.2078,3817.1,3817.0,2.29932]
[1753631003099,0.9315,3817.4,3817.3,1.23768]
[1753631003296,1.87815437,3817.4,3817.3,2.29928]
[1753631003597,2.15875437,3817.4,3817.3,2.29928]
[1753631003896,2.15875437,3817.4,3817.3,1.83928]
[1753631004097,2.99072437,3817.4,3817.3,1.23018]
[1753631004288,0.1925,3816.7,3816.6,0.5011]
[1753631004489,2.24977,3816.7,3816.6,0.52388]
[1753631004689,1.7259,3816.7,3816.6,1.02498]
[1753631004890,1.4177,3816.7,3816.6,2.29938]
[1753631005098,1.7259,3817.1,3817.0,1.23772]
[1753631005294,1.4177,3817.1,3817.0,2.29932]
[1753631006194,1.7259,3817.1,3817.0,2.29932]
[1753631006699,2.24971,3817.1,3817.0,1.83932]
[1753631007105,2.24971,3817.1,3817.0,1.23022]
[1753631007305,2.24975,3816.9,3816.8,0.52384]
[1753631007907,1.6957,3816.5,3816.4,0.71699]
[1753631008100,1.6957,3816.5,3816.4,1.81069]
[1753631008405,1.413,3816.5,3816.4,2.23769]
[1753631009308,1.93689,3816.5,3816.4,2.23769]
[1753631009808,1.413,3816.5,3816.4,2.23769]
[1753631010506,4.6208,3817.0,3816.9,1.00903]
[1753631010700,4.1921,3817.0,3816.6,0.3006]
[1753631010904,1.413,3816.5,3816.4,1.9299]
[1753631011308,1.413,3816.5,3816.4,2.2377]
[1753631012108,1.6957,3816.5,3816.4,1.218]
[1753631012510,1.6957,3816.5,3816.4,1.5186]
[1753631012706,1.6957,3816.5,3816.4,2.2377]
[1753631013507,1.413,3816.5,3816.4,2.2377]
[1753631013709,1.93689,3816.5,3816.4,2.2377]
[1753631014112,1.413,3816.5,3816.4,2.2377]
[1753631014707,1.413,3816.5,3816.4,5.4455]
[1753631014906,1.413,3816.5,3816.4,2.2377]
[1753631015611,1.6957,3816.5,3816.4,2.2377]
[1753631016207,2.21959,3816.5,3816.4,2.2377]
[1753631016405,1.70719331,3816.5,3816.4,2.2377]
[1753631017011,2.23108331,3816.5,3816.4,2.2377]
[1753631017417,1.71859955,3816.5,3816.4,2.2377]
[1753631017711,1.43589955,3816.5,3816.4,2.2377]
[1753631018613,1.43938779,3816.5,3816.4,2.2377]
[1753631019610,1.96327779,3816.5,3816.4,2.2377]
[1753631019815,2.24597779,3816.5,3816.4,2.2377]
[1753631020017,1.72208779,3816.5,3816.4,2.2377]
[1753631020310,2.24597779,3816.5,3816.4,2.2377]
[1753631020713,2.24597779,3816.5,3816.2,3.2078]
[1753631020714,1.22888779,3816.5,3816.2,3.2078]
[1753631020910,1.413,3815.7,3815.6,4.35191]
[1753631021112,2.2197,3815.7,3815.6,4.23271]
[1753631021317,0.52404,3815.4,3815.3,0.5009]
[1753631021613,2.24612779,3815.4,3815.3,21.191]
[1753631021809,2.24612779,3815.4,3815.3,21.71505]
[1753631022318,2.24612779,3815.4,3815.3,22.21595]
[1753631024418,1.21625,3815.3,3815.2,3.2078]
[1753631024610,2.24613779,3815.3,3815.2,4.42596]
[1753631025116,1.72208779,3815.3,3815.2,4.42596]
[1753631025322,1.43938779,3815.3,3815.2,5.44566]
[1753631025620,0.02638779,3815.3,3815.2,5.44566]
[1753631026513,0.71858779,3815.3,3815.2,5.44566]
[1753631026822,1.43938779,3815.3,3815.2,26.61766]
[1753631027017,1.72208779,3815.3,3815.2,26.61766]
[1753631027223,2.24613779,3815.3,3815.2,4.71806]
[1753631027416,2.24613779,3815.3,3815.2,25.59596]
[1753631027715,0.02638779,3815.3,3815.2,26.61566]
[1753631029421,1.1209,3816.1,3816.0,0.979]
[1753631029622,1.413,3816.1,3816.0,1.7138]
[1753631029824,1.413,3816.1,3816.0,2.23776]
[1753631030521,1.93694,3816.1,3816.0,2.23776]
[1753631030720,1.6957,3816.1,3816.0,2.23776]
[1753631031222,1.413,3816.1,3816.0,2.23776]
[1753631031417,1.50821,3816.4,3816.3,1.20231]
[1753631031620,0.9843,3816.4,3816.3,2.23771]
[1753631032016,1.413,3816.4,3816.3,2.23771]
[1753631035026,1.9369,3816.4,3816.3,2.23771]
[1753631035224,2.2196,3816.4,3816.3,2.23771]
[1753631036226,2.2196,3816.4,3816.3,1.81071]
[1753631037821,2.2196,3816.4,3816.3,1.21801]
[1753631039227,2.2196,3816.4,3816.3,1.52531]
[1753631039525,2.2196,3816.4,3816.3,2.25341]
[1753631042323,0.52391,3816.3,3816.2,21.69292]
[1753631042524,1.1342,3816.3,3816.2,23.41472]
[1753631042722,0.4852,3816.3,3816.2,23.41472]
[1753631043227,1.93891,3816.3,3816.2,23.41472]
[1753631043823,1.93891,3816.3,3816.2,2.24572]
[1753631044028,1.7022,3815.8,3815.7,0.2951]
[1753631044230,2.22618,3815.8,3815.7,1.0103]
[1753631044425,2.22618,3815.8,3815.7,2.2458]
[1753631044928,2.2262,3815.7,3815.6,21.122]
[1753631045224,2.2262,3815.7,3815.6,1.21041]
[1753631045424,2.2262,3815.7,3815.6,1.51771]
[1753631045629,2.2262,3815.7,3815.6,1.21041]
[1753631047419,2.2262,3815.7,3815.6,1.51771]
[1753631047821,2.2262,3815.7,3815.6,1.21041]
[1753631049834,2.22621,3815.6,3815.5,0.52401]
[1753631050018,2.22621,3815.6,3815.5,0.81911]
[1753631050220,2.22621,3815.6,3815.5,1.01031]
[1753631050727,2.22621,3815.6,3815.5,1.21041]
[1753631050927,2.22621,3815.6,3815.5,1.93961]
[1753631051330,2.22621,3815.6,3815.5,2.24581]
[1753631052121,1.93901,3815.6,3815.5,2.24581]
[1753631053931,2.22621,3815.6,3815.5,2.24581]
[1753631054934,1.7022,3815.6,3815.5,2.24581]
[1753631055126,1.7022,3815.6,3814.9,37.738]
[1753631055127,0.4479,3815.1,3814.3,0.2951]
[1753631055436,0.4852,3814.8,3814.7,1.7218]
[1753631055827,0.97199,3815.0,3814.9,0.6975]
[1753631056028,0.97199,3815.0,3814.9,1.7218]
[1753631056422,3.73186,3815.2,3815.1,1.7218]
[1753631056628,3.2078,3815.2,3815.1,23.38688]
[1753631057231,3.73186,3815.2,3815.1,23.38688]
[1753631058031,3.2078,3815.2,3815.1,23.38688]
[1753631058736,3.73186,3815.2,3815.1,23.38688]
[1753631059331,5.14686,3815.2,3815.1,23.38688]
[1753631059527,0.92612,3814.9,3814.8,0.4863]
[1753631059731,1.415,3814.9,3814.8,23.37992]
[1753631059929,1.415,3814.9,3814.8,2.24592]
[1753631060129,1.415,3814.9,3814.8,23.37992]
[1753631060331,1.7022,3814.9,3814.8,23.37992]
[1753631060533,1.415,3814.9,3814.8,23.37992]
[1753631060829,5.14687,3815.2,3815.1,2.24588]
[1753631061029,5.14687,3815.2,3815.1,23.38188]
[1753631061337,5.14687,3815.2,3815.1,22.8578]
[1753631062234,5.14687,3815.2,3815.1,23.38188]
[1753631063036,5.43407,3815.2,3815.1,22.8578]
[1753631063432,5.43407,3815.2,3815.1,23.38188]
[1753631064029,2.22627,3815.2,3815.1,23.38188]
[1753631064537,1.45737,3815.2,3815.1,23.38188]
[1753631064736,1.93907,3815.2,3815.1,2.24588]
[1753631064938,1.93907,3815.2,3815.1,23.37188]
[1753631065234,1.93907,3815.2,3815.1,2.24588]
[1753631065637,1.93907,3815.2,3815.1,23.37188]
[1753631065835,1.93907,3815.2,3815.1,2.24588]
[1753631066136,1.93907,3815.2,3815.1,23.37188]
[1753631074741,2.24927,3815.2,3815.1,23.37188]
[1753631075156,2.24927,3815.2,3815.1,22.33548]
[1753631075446,2.24927,3815.2,3815.1,21.8114]
[1753631076448,2.24927,3815.2,3815.1,22.33548]
[1753631077644,1.2298,3815.0,3814.9,0.52409]
[1753631077845,2.2592,3815.0,3814.9,21.64909]
[1753631078047,2.2592,3815.0,3814.9,21.93359]
[1753631078245,2.2592,3815.0,3814.9,22.33929]
[1753631078442,2.2592,3815.0,3814.9,23.39859]
[1753631078847,0.5241,3815.0,3814.9,23.39859]
[1753631079048,1.54738,3815.1,3815.0,2.27358]
[1753631079248,1.94898,3815.1,3815.0,23.39858]
[1753631079545,1.2216,3815.3,3815.2,0.7056]
[1753631079749,1.45265,3815.3,3815.2,22.80396]
[1753631079952,1.94895,3815.3,3815.2,22.80396]
[1753631080255,1.94895,3815.3,3815.2,23.39856]
[1753631082652,1.4249,3815.3,3815.2,23.39856]
[1753631083055,1.94895,3815.3,3815.2,23.39856]
[1753631085250,1.4249,3815.3,3815.2,23.39856]
[1753631086158,1.94895,3815.3,3815.2,23.39856]
[1753631086456,1.4249,3815.3,3815.2,23.39856]
[1753631086852,1.94895,3815.3,3815.2,23.39856]
[1753631087558,1.4249,3815.3,3815.2,23.39856]
[1753631088259,1.94895,3815.3,3815.2,23.39856]
[1753631088658,1.4249,3815.3,3815.2,23.39856]
[1753631090064,1.94895,3815.3,3815.2,23.39856]
[1753631090256,1.4249,3815.3,3815.2,23.39856]
[1753631091256,0.3041,3815.3,3815.2,23.39856]
[1753631091463,1.4249,3815.6,3815.5,2.27352]
[1753631091655,1.4249,3815.6,3815.5,23.39552]
[1753631091852,0.293,3815.9,3815.8,0.52398]
[1753631092059,3.9381,3816.0,3815.9,1.51407]
[1753631092259,3.94968915,3816.0,3815.9,2.27347]
[1753631092465,0.4262,3816.3,3816.2,1.22953]
[1753631092664,0.9336,3816.3,3816.2,23.39543]
[1753631092865,2.16674614,3816.3,3816.2,23.39543]
[1753631093460,0.74184614,3816.3,3816.2,23.39543]
[1753631093665,2.39779468,3816.5,3816.4,2.2734]
[1753631093865,2.69079468,3816.5,3816.4,23.3954]
[1753631094362,1.94879,3816.5,3816.4,23.3954]
[1753631095060,0.9336,3816.5,3816.4,23.3954]
[1753631095267,1.2266,3816.5,3816.4,23.3954]
[1753631096068,1.24866343,3816.5,3816.4,23.3954]
[1753631096368,0.5074,3816.5,3816.4,23.3954]
[1753631097069,1.4249,3816.8,3816.7,2.27336]
[1753631097265,1.4249,3816.8,3816.7,23.39236]
[1753631099270,1.4249,3816.8,3816.7,21.92636]
[1753631099271,2.22934,3816.8,3816.7,21.92636]
[1753631099869,1.4249,3816.8,3816.7,23.31516]
[1753631100571,2.22934,3816.8,3816.7,23.01976]
[1753631100774,2.22934,3816.8,3816.7,1.90376]
[1753631100969,2.22934,3816.8,3816.7,21.63886]
[1753631101870,1.4249,3816.8,3816.7,23.31626]
[1753631102068,2.2383,3817.2,3817.1,1.2019]
[1753631102271,2.2383,3817.2,3817.1,2.2012]
[1753631102767,1.7145,3817.2,3817.1,2.2012]
[1753631102980,4.9223,3817.5,3817.4,1.20186]
[1753631103292,0.52383,3817.0,3816.9,0.81243]
[1753631103468,1.7145,3817.0,3816.9,21.63883]
[1753631103667,2.23832,3817.0,3816.9,22.12213]
[1753631104074,2.23832,3817.0,3816.9,22.59543]
[1753631104367,2.23832,3817.0,3816.9,23.31623]
[1753631104368,0.7418,3817.0,3816.9,23.31623]
[1753631104561,2.23832,3817.0,3816.9,23.31623]
[1753631104765,2.23832,3817.0,3816.9,23.31423]
[1753631104967,1.7145,3817.0,3816.9,22.88683]
[1753631105368,1.7145,3817.0,3816.9,23.31423]
[1753631106273,1.4339,3817.0,3816.9,23.31423]
[1753631106768,1.4339,3817.0,3816.9,2.20123]
[1753631106969,2.23832,3817.0,3816.9,23.31423]
[1753631107270,1.7145,3817.0,3816.9,23.31423]
[1753631107570,1.4339,3817.0,3816.9,2.20123]
[1753631107867,2.23832,3817.0,3816.9,23.31223]
[1753631108576,2.23832,3817.0,3816.9,2.20123]
[1753631108776,2.23832,3817.0,3816.9,23.31223]
[1753631109670,2.23832,3817.0,3816.9,1.48043]
[1753631109879,2.23832,3817.0,3816.9,21.63383]
[1753631110675,2.23832,3817.0,3816.9,21.92243]
[1753631113473,2.23832,3817.0,3816.9,21.92043]
[1753631114270,2.23832,3817.0,3816.9,21.63183]
[1753631114477,2.23832,3817.0,3816.9,21.108]
[1753631114672,2.23832,3817.0,3816.9,21.63183]
[1753631114877,2.23832,3817.0,3816.9,22.58843]
[1753631115077,2.23832,3817.0,3816.9,2.20123]
[1753631115975,1.7145,3817.0,3816.9,2.20123]
[1753631116181,2.23832,3817.0,3816.9,2.20123]
[1753631116577,1.46012,3817.0,3816.9,2.20123]
[1753631116778,1.76246,3817.4,3817.3,0.2934]
[1753631116982,1.95766,3817.4,3817.3,1.6774]
[1753631117484,2.23826,3817.4,3817.3,1.6774]
[1753631117781,2.23826,3817.4,3817.3,2.20118]
[1753631118172,2.23826,3817.4,3817.3,1.6774]
[1753631118372,2.23826,3817.4,3817.3,2.20118]
[1753631118578,1.95766,3817.4,3817.3,2.20118]
[1753631119273,2.23826,3817.4,3817.3,0.4833]
[1753631119677,2.23826,3817.4,3817.3,1.00708]
[1753631119877,2.23826,3817.4,3817.3,1.90778]
[1753631120079,2.23826,3817.4,3817.3,1.384]
[1753631121185,2.23829,3817.2,3817.1,21.105]
[1753631121386,2.23829,3817.2,3817.1,21.3936]
[1753631121583,2.23829,3817.2,3817.1,21.105]
[1753631121888,1.7145,3816.9,3816.8,1.91794]
[1753631122183,1.76943,3816.9,3816.8,2.20124]
[1753631122484,1.46013,3816.9,3816.8,2.20124]
[1753631122679,2.23833,3816.9,3816.8,1.6774]
[1753631122883,2.23833,3816.9,3816.8,2.20124]
[1753631123283,2.23833,3816.9,3816.8,0.6733]
[1753631123785,2.23833,3816.9,3816.8,2.20124]
[1753631124686,1.95773,3816.9,3816.8,2.20124]
[1753631124887,1.45319,3817.2,3817.1,1.2019]
[1753631125081,1.95769,3817.2,3817.1,1.2019]
[1753631125486,1.95769,3817.2,3817.1,2.2012]
[1753631126084,0.83237,3817.4,3817.3,0.52378]
[1753631126284,1.26487,3817.4,3817.3,2.20118]
[1753631126584,0.83237,3817.4,3817.3,2.20118]
[1753631126784,0.83236,3817.4,3817.3,2.20118]
[1753631127185,1.95766,3817.4,3817.3,2.20118]
[1753631127489,2.23826,3817.4,3817.3,1.6774]
[1753631128096,1.95766,3817.4,3817.3,2.20118]
[1753631128392,1.02756,3817.4,3817.3,2.20118]
[1753631128791,1.97506,3817.4,3817.3,2.20118]
[1753631128993,2.26476,3817.4,3817.3,0.9566]
[1753631129293,5.47256,3817.4,3817.3,0.4833]
[1753631129483,2.26476,3817.4,3817.3,0.4833]
[1753631129682,5.47256,3817.4,3817.3,0.4833]
[1753631129883,1.77296042,3817.4,3816.1,1.30985]
[1753631130082,0.74531501,3817.5,3815.7,3.36529501]
[1753631130083,1.2494,3816.9,3816.8,2.24473]
[1753631130289,1.26919,3817.2,3817.1,0.5238]
[1753631130490,0.98249,3817.2,3817.1,2.2447]
[1753631130685,1.97529,3817.2,3817.1,2.2447]
[1753631130991,2.26499,3817.2,3817.1,0.6691]
[1753631131185,0.7061,3817.0,3816.8,0.7458]
[1753631131382,3.01034501,3816.9,3816.8,0.289]
[1753631131591,2.26506,3816.7,3816.6,1.30286]
[1753631131792,2.26506,3816.7,3816.6,0.9671]
[1753631131991,2.26506,3816.7,3816.6,1.49097]
[1753631132392,2.26506,3816.7,3816.6,1.94777]
[1753631132582,2.26506,3816.7,3816.6,1.4239]
[1753631133895,2.26506,3816.7,3816.6,2.24477]
[1753631134083,1.4515,3816.7,3816.6,2.24477]
[1753631135191,3.2078,3817.0,3816.9,2.24473]
[1753631135599,5.47282,3817.0,3816.9,1.4239]
[1753631135789,5.47282,3817.0,3816.9,1.00483]
[1753631135994,5.47282,3817.0,3816.9,1.19293]
[1753631136294,5.47282,3817.0,3816.9,2.24473]
[1753631136295,4.6593,3817.0,3816.9,2.24473]
[1753631136494,4.3726,3817.0,3816.9,2.24473]
[1753631137090,3.2078,3817.0,3816.9,2.24473]
[1753631137296,1.4515,3817.2,3817.1,2.24469]
[1753631137892,1.1648,3817.2,3817.1,2.24469]
[1753631138093,0.504,3817.2,3817.1,2.24469]
[1753631138290,1.02779,3817.2,3817.1,2.24469]
[1753631138492,0.52383,3816.9,3816.8,0.82184]
[1753631138692,0.504,3817.2,3817.1,0.9751]
[1753631138892,0.504,3817.2,3817.1,1.7209]
[1753631139089,1.4515,3817.2,3817.1,2.2447]
[1753631139391,4.98096,3817.5,3817.4,1.7209]
[1753631139897,5.92117623,3817.5,3817.4,1.7209]
[1753631141099,6.21087623,3817.5,3817.4,1.7209]
[1753631141493,5.63446623,3817.5,3817.4,2.24466]
[1753631141697,4.97366623,3817.5,3817.4,2.24466]
[1753631142002,4.23555,3817.5,3817.4,2.24466]
[1753631143201,4.69425,3817.5,3817.4,2.24466]
[1753631143690,4.98095,3817.5,3817.4,2.24466]
[1753631144296,5.47275,3817.5,3817.4,0.289]
[1753631144496,5.18305,3817.5,3817.4,1.7209]
[1753631145192,3.9727,3817.5,3817.4,2.24466]
[1753631145396,1.51869,3817.9,3817.8,1.2641]
[1753631145598,2.452347,3817.9,3817.8,1.7209]
[1753631146000,2.911047,3817.9,3817.8,1.7209]
[1753631146297,2.26492,3817.7,3817.6,0.481]
[1753631146498,5.47272,3817.7,3817.6,0.481]
[1753631147502,1.97522,3817.7,3817.6,2.24463]